Cogmind - Beta 13 @@@ ROGUE MODE // 2024.04.09 @ 03:17:18 Player: nixie Result: Destroyed by G-67 Veteran with Plasma Rifle Performance ------------- Evolutions (1) 500 Regions Visited (5) 1000 Robots Destroyed (30) 150 Value Destroyed (982) 982 Prototype IDs (7) 140 Alien Tech Used (0) 0 Bonus (827) 827 TOTAL SCORE: 3599 Bonus ------- Follower Combat Kills 227 Met Imprinter 300 Was Imprinted 300 Cogmind --------- Core Integrity 0/400 Matter 258/300 Energy 280/280 System Corruption 30% Temperature Cool (72) Movement Core (200) Ox3 Location -6/Proximity Caves Parts ------- > --- POWER (1) -------- Heavy Ion Engine > --- PROPULSION (2) --- (None) > --- UTILITY (4) ------ (None) > --- WEAPON (2) ------- Barrage Gun > --- INVENTORY (5) ---- Medium Treads Advanced Hacking Suite Peak State ------------ > --- POWER ------------ Heavy Ion Engine > --- PROPULSION ------- Armored Treads Medium Treads > --- UTILITY ---------- Improved Heat Sink Spectral Analyzer Experimental Targeting Computer Hacking Drone Bay > --- WEAPON ----------- Particle Cannon Particle Cannon > --- INVENTORY -------- Medium Treads Advanced Hacking Suite Particle Cannon [Rating: 42] Favorites ----------- Power Heavy Ion Engine Engine Heavy Ion Engine Propulsion Light Treads Treads Light Treads Utility Small Storage Unit Device Hacking Drone Bay Storage Small Storage Unit Processor Visual Processing Unit Weapon Particle Cannon Energy Gun Heavy Laser Energy Cannon Particle Cannon Ballistic Gun Light Assault Rifle Launcher Grenade Launcher Special Weapon Plasma Cutter Build | -11 -10 -9 -9 -7 -6 ------- Run | Yrd Mat Mat Min Zio Pro Slots Evolved 2 | . . 2 . . . Power . | . . . . . . Propulsion . | . . . . . . Utility 2 | . . 2 . . . Weapon . | . . . . . . Parts Attached 33 | 6 7 8 . 4 8 Power 5 | 1 . 4 . . . Engine 5 | 1 . 4 . . . Core . | . . . . . . Reactor . | . . . . . . Propulsion 4 | 2 . . . . 2 Treads 4 | 2 . . . . 2 Leg . | . . . . . . Wheel . | . . . . . . Hover . | . . . . . . Flight . | . . . . . . Utility 11 | 1 1 4 . 4 1 Device 6 | . . 4 . 1 1 Storage 1 | 1 . . . . . Processor 4 | . 1 . . 3 . Hackware . | . . . . . . Protection . | . . . . . . Artifact . | . . . . . . Weapon 13 | 2 6 . . . 5 Energy Gun 2 | . 1 . . . 1 Energy Cannon 6 | . 3 . . . 3 Ballistic Gun 3 | 2 . . . . 1 Ballistic Cannon . | . . . . . . Launcher 1 | . 1 . . . . Special Weapon 1 | . 1 . . . . Impact Weapon . | . . . . . . Slashing Weapon . | . . . . . . Piercing Weapon . | . . . . . . Special Melee Weapon . | . . . . . . Unidentified Prototypes 5 | . . 1 . 4 . Corrupted Parts 3 | . . . . . 3 System Corruption 13 | . . . . . 13 Parts Lost 13 | . . 1 . . 12 Power 1 | . . 1 . . . Propulsion 4 | . . . . . 4 Utility 4 | . . . . . 4 Weapon 4 | . . . . . 4 Highest Loss Streak 9 | . . 1 . . 9 To Critical Strikes . | . . . . . . Average Slot Usage (%) 93 | . 94 89 88 98 86 Engine 11 | . 14 10 11 11 11 Treads 20 | . 28 22 22 22 11 Device 14 | . . 13 11 19 11 Storage 10 | . 14 11 11 11 9 Processor 13 | . 9 11 11 11 21 Energy Cannon 20 | . 17 22 22 22 17 Naked Turns . | . . . . . . Heaviest Build 27 | 12 18 27 26 27 22 Greatest Support 48 | 40 40 40 40 40 48 Greatest Overweight (x) 7 | . . . . . 7 Average Overweight (x) . | . . . . . 1 Largest Inventory Capacity 8 | 8 8 8 8 8 8 Average Capacity 7 | 6 8 8 8 8 7 Most Carried 8 | 5 7 7 5 8 8 Average Carried 5 | . 3 4 5 6 5 Final Capacity 8 | 8 8 8 8 8 5 Final Carried 8 | . 4 5 5 8 2 Class Distribution -------------------- 100% | Mutant Dominant Class ---------------- Mutant | -10/Materials Mutant | -9/Materials Mutant | -9/Mines Mutant | -7/Zion Mutant | -6/Proximity Caves Resources | -11 -10 -9 -9 -7 -6 ----------- Run | Yrd Mat Mat Min Zio Pro Matter Collected 599 | 243 101 135 . 10 110 Remotely 90 | . . 90 . . . Salvage Created 1137 | . 153 521 . . 463 Parts 64 | . 9 35 . . 20 Haulers Intercepted . | . . . . . . Recyclers Shooed . | . . . . . . Parts Field Recycled . | . . . . . . Retrieved Matter . | . . . . . . Parts Self-Destructed 33 | . . . . 3 30 Prevented 4 | . . . . . 4 Kills | -11 -10 -9 -9 -7 -6 ------- Run | Yrd Mat Mat Min Zio Pro Combat Hostiles Destroyed 24 | . 5 10 . . 9 Guns 1 | . . . . . 1 Cannons 22 | . 4 10 . . 8 AOE 1 | . 1 . . . . Classes Destroyed 7 | . 3 2 . . 2 Tunneler 1 | . . 1 . . . Drone 1 | . . . . . 1 Watcher 5 | . 2 3 . . . Swarmer 3 | . 3 . . . . Grunt 14 | . 2 8 . . 4 Brawler 2 | . . . . . 2 Sentry 4 | . . 2 . . 2 Best Kill Streak 6 | . 3 5 . . 6 Combat Bots Only 6 | . 3 3 . . 6 Max Kills in Single Turn 1 | . 1 1 . . 1 Gunslinging . | . . . . . . Exploded 1 | . 1 . . . . Melee . | . . . . . . Uniques/NPCs Destroyed . | . . . . . . Combat | -11 -10 -9 -9 -7 -6 -------- Run | Yrd Mat Mat Min Zio Pro Hostile Shots Fired 158 | . 21 44 . . 93 Missed 38 | . 6 14 . . 18 Damage Taken 2089 | . 212 332 . . 1545 Core 442 | . 38 34 . . 370 Absorbed by Shields . | . . . . . . Regen/Repaired (Parts) 51 | . 51 . . . . Core Remaining (%) 92 | 100 84 . . . . Volleys Fired 73 | . 14 24 . . 35 Largest 2 | . 2 2 . . 2 Hottest 137 | . 136 136 . . 137 Shots Fired 127 | . 22 48 . . 57 Gun 11 | . 2 . . . 9 Cannon 114 | . 18 48 . . 48 Launcher 2 | . 2 . . . . Special . | . . . . . . Kinetic 10 | . 2 . . . 8 Thermal 115 | . 18 48 . . 49 Explosive 2 | . 2 . . . . Electromagnetic . | . . . . . . Robot Hit Streak 11 | . 4 7 . . 11 Robot Miss Streak 6 | . 6 3 . . 2 Penetration Max . | . . . . . . Secondary Targets . | . . . . . . Shots Hit Robots 81 | . 10 27 . . 44 Core Hits 39 | . 8 14 . . 17 Critical Kills . | . . . . . . Critical Parts Destroyed . | . . . . . . Critical Strikes 1 | . . . . . 1 Burn 1 | . . . . . 1 Melee Attacks . | . . . . . . Impact . | . . . . . . Slashing . | . . . . . . Piercing . | . . . . . . Sneak Attacks . | . . . . . . Combat Hostiles . | . . . . . . Follow-up Attacks . | . . . . . . Damage Inflicted 1769 | . 269 598 . . 902 Guns 127 | . . . . . 127 Cannons 1576 | . 204 597 . . 775 Explosions 56 | . 56 . . . . Melee . | . . . . . . Ramming 10 | . 9 1 . . . Kinetic 107 | . . . . . 107 Thermal 1596 | . 204 597 . . 795 Explosive 56 | . 56 . . . . Electromagnetic . | . . . . . . Impact . | . . . . . . Slashing . | . . . . . . Piercing . | . . . . . . Highest Corruption 30 | . 1 . . . 30 Average Corruption 2 | . 1 . . . 2 Corruption Purged . | . . . . . . Corruption Blocked . | . . . . . . Effects 12 | . 1 . . . 11 Message Errors 1 | . . . . . 1 Matter Fused 5 | . . . . . 5 Heat Flow Errors 1 | . . . . . 1 Energy Discharges 1 | . . . . . 1 Parts Fused 1 | . 1 . . . . Data Loss (minor) 2 | . . . . . 2 Weapon Failures 1 | . . . . . 1 Overload Shots . | . . . . . . Overflow Damage 11 | . 8 . . . 3 Projectiles 11 | . 8 . . . 3 Explosions . | . . . . . . Melee . | . . . . . . Knockbacks . | . . . . . . Impact . | . . . . . . Kinetic . | . . . . . . Secondary . | . . . . . . Self-Inflicted Damage 31 | . 31 . . . . Shots 1 | . 1 . . . . Rammed 4 | . 3 1 . . . Targets Rammed 4 | . 3 1 . . . Kicked . | . . . . . . Crushed . | . . . . . . Highest Temperature 598 | . 300 416 . . 598 Average Temperature 158 | . 97 135 . . 208 Received Heat Transfer 473 | . 36 180 . . 257 Effects 7 | . . 1 . . 6 Shutdowns 2 | . . . . . 2 Energy Bleed 2 | . . . . . 2 Matter Decay 1 | . . 1 . . . Short Circuit 1 | . . . . . 1 Damage (core) 1 | . . . . . 1 Siege Activations . | . . . . . . Robots Corrupted . | . . . . . . Combat Hostiles . | . . . . . . Parts Fried . | . . . . . . Impact Corruptions . | . . . . . . Robots Melted . | . . . . . . Combat Hostiles . | . . . . . . Parts Melted 2 | . 1 . . . 1 Heat Transferred 2777 | . 370 1073 . . 1334 Parts Sabotaged . | . . . . . . Parts Stolen . | . . . . . . Parts Stripped . | . . . . . . Power Chain Reactions . | . . . . . . Alert | -11 -10 -9 -9 -7 -6 ------- Run | Yrd Mat Mat Min Zio Pro Peak Influence 312 | . 208 312 13 . . Initial 13 | . . 3 13 . . Average 78 | . 74 94 13 . . Maximum Alert Level 1 | . 1 1 . . . Low Security (%) 86 | 100 97 76 100 . . Level 1 13 | . 2 23 . . . Level 2 . | . . . . . . Level 3 . | . . . . . . Level 4 . | . . . . . . Level 5 . | . . . . . . High Security . | . . . . . . Max Security . | . . . . . . Squads Dispatched 3 | . 1 1 . . 1 Investigation 1 | . . 1 . . . Extermination . | . . . . . . Reinforcement 1 | . 1 . . . . Assault 1 | . . . . . 1 Garrison . | . . . . . . Intercept . | . . . . . . Searches Triggered . | . . . . . . Construction Impeded . | . . . . . . Haulers Reinforced . | . . . . . . Active Scanning Responses . | . . . . . . Cargo Convoy Interrupts . | . . . . . . Stealth | -11 -10 -9 -9 -7 -6 --------- Run | Yrd Mat Mat Min Zio Pro Distress Signals 3 | . . 3 . . . Communications Jammed . | . . . . . . Distress Signals . | . . . . . . Times Spotted 46 | . 12 16 . . 18 Peak Tracking Total 7 | . 3 4 . . 7 Tactical Retreats 1 | . . 1 . . . Traps | -11 -10 -9 -9 -7 -6 ------- Run | Yrd Mat Mat Min Zio Pro Traps Triggered 2 | . 1 1 . . . Indirectly . | . . . . . . Trap Hack Attempts . | . . . . . . Triggered . | . . . . . . Disarmed . | . . . . . . Reprogrammed . | . . . . . . Reused . | . . . . . . Traps Extracted . | . . . . . . Installed . | . . . . . . Triggered . | . . . . . . Machines | -11 -10 -9 -9 -7 -6 ---------- Run | Yrd Mat Mat Min Zio Pro Machines Disabled 3 | . 2 . . . 1 Max in Single Turn 1 | . 1 . . . . Machines Repaired . | . . . . . . Machines Dismantled . | . . . . . . Machines Sabotaged . | . . . . . . Overloaded Fab Kills . | . . . . . . Hacking | -11 -10 -9 -9 -7 -6 --------- Run | Yrd Mat Mat Min Zio Pro Machines Accessed 5 | . 1 3 . 1 . Terminals 1 | . . 1 . . . Fabricators . | . . . . . . Repair Stations 1 | . 1 . . . . Recycling Units 1 | . . 1 . . . Scanalyzers 1 | . . 1 . . . Garrison Access . | . . . . . . Total Hacks 21 | . 4 10 . 7 . Successful 17 | . 3 7 . 7 . Failed 4 | . 1 3 . . . Catastrophic . | . . . . . . Database Lockouts . | . . . . . . Manual . | . . . . . . Terminals 3 | . . 3 . . . Fabricators . | . . . . . . Repair Stations 4 | . 4 . . . . Recycling Units 4 | . . 4 . . . Scanalyzers 3 | . . 3 . . . Garrison Access . | . . . . . . Terminal Hacks 9 | . . 2 . 7 . Part Schematic 7 | . . . . 7 . Prototype ID Bank 1 | . . 1 . . . Unreport Threat 1 | . . 1 . . . Fabricator Hacks . | . . . . . . Repair Station Hacks 3 | . 3 . . . . Scan Component 2 | . 2 . . . . Repair 1 | . 1 . . . . Recycling Unit Hacks 3 | . . 3 . . . Recycle Component 1 | . . 1 . . . Process 1 | . . 1 . . . Retrieve Matter 1 | . . 1 . . . Scanalyzer 2 | . . 2 . . . Insert Component 1 | . . 1 . . . Analyze 1 | . . 1 . . . Garrison Access Hacks . | . . . . . . Unauthorized Hacks . | . . . . . . Terminals . | . . . . . . Fabricators . | . . . . . . Repair Stations . | . . . . . . Recycling Units . | . . . . . . Scanalyzers . | . . . . . . Garrison Access . | . . . . . . Data Cores Recovered . | . . . . . . Used . | . . . . . . Hacking Detections 2 | . 1 1 . . . Full Trace Events 1 | . 1 . . . . Feedback Events 1 | . 1 . . . . Corruption 1 | . 1 . . . . Feedback Blocked . | . . . . . . Robot Schematics Acquired 3 | . . . . 3 . Robots Built . | . . . . . . Authchips . | . . . . . . Time . | . . . . . . Total Robot Build Rating . | . . . . . . Part Schematics Acquired 22 | . . 1 . 21 . Parts Built . | . . . . . . Authchips . | . . . . . . Time . | . . . . . . Total Part Build Rating . | . . . . . . Parts Repaired 1 | . 1 . . . . Time 32 | . 32 . . . . Parts Recycled 1 | . . 1 . . . Recycled Matter 41 | . . 41 . . . Retrieved Matter 41 | . . 41 . . . Retrieved Components . | . . . . . . Parts Scanalyzed 1 | . . 1 . . . Part Schematics Acquired 1 | . . 1 . . . Parts Damaged . | . . . . . . Bothacking | -11 -10 -9 -9 -7 -6 ------------ Run | Yrd Mat Mat Min Zio Pro Used RIF Installer . | . . . . . . Robots Hacked . | . . . . . . Non-combat . | . . . . . . Combat . | . . . . . . Robot Hacks Applied . | . . . . . . Relay Couplers Released . | . . . . . . Fabnet Peak Effective % . | . . . . . . Robots Rewired . | . . . . . . Allies Hacked . | . . . . . . Hacks Repelled . | . . . . . . Allies | -11 -10 -9 -9 -7 -6 -------- Run | Yrd Mat Mat Min Zio Pro Total Allies 4 | . . . . 4 . Largest Group 4 | . . . . 4 4 Highest-Rated Group 149 | . . . . 149 149 Highest-Rated Ally 41 | . . . . 41 41 Total Orders . | . . . . . . Ally Attacks 45 | . . . . . 45 Total Damage 1233 | . . . . . 1233 Kills 8 | . . . . . 8 Allies Corrupted . | . . . . . . Allies Melted . | . . . . . . Intel | -11 -10 -9 -9 -7 -6 ------- Run | Yrd Mat Mat Min Zio Pro Robot Analysis Total . | . . . . . . Derelict Logs Recovered 3 | . . . . 2 1 Drone Launches 1 | . . . . . 1 Drone Recoveries 1 | . . . . . 1 Exploration | -11 -10 -9 -9 -7 -6 ------------- Run | Yrd Mat Mat Min Zio Pro Turns Passed 3598 | 69 441 586 23 1716 763 Spaces Moved 1916 | 51 208 293 15 1060 289 Core 87 | 21 . . . . 66 Treads 1829 | 30 208 293 15 1060 223 Legs . | . . . . . . Wheels . | . . . . . . Hover . | . . . . . . Flight . | . . . . . . Fastest Speed 50 | 50 160 160 160 160 150 Average Speed 168 | 114 160 160 160 160 222 Slowest Speed 400 | 160 160 160 160 160 400 Overloaded Moves . | . . . . . . Propulsion Burnouts . | . . . . . . Robots Hopped . | . . . . . . Cave-ins Triggered . | . . . . . . Exploration Rate (%) 34 | 4 28 32 7 88 45 Regions Visited 5 Branch Regions 3 Pre-discovered Areas 2 | . . . . 2 . Known Exits Taken . | . . . . . . Unknown Exits Taken 5 | 1 1 1 1 1 . Scrap Searched 4 | . . . . 3 1 Spaces Dug . | . . . . . . Terrain Destroyed 12 | . 12 . . . . Melee . | . . . . . . Projectile . | . . . . . . AOE 12 | . 12 . . . . Terrain Rammed . | . . . . . . Walls Destroyed . | . . . . . . Machines Disabled . | . . . . . . Actions | -11 -10 -9 -9 -7 -6 --------- Run | Yrd Mat Mat Min Zio Pro Total 2178 | 62 294 367 14 1085 356 Wait 71 | . 40 19 . 1 11 Move 1911 | 50 207 292 14 1059 289 Hop . | . . . . . . Pick Up 46 | 6 11 11 . 12 6 Fast Attach . | . . . . . . Attach 30 | 6 7 7 . 4 6 Detach 13 | . 5 5 . 3 . Swap 3 | . . 1 . . 2 Drop 25 | . 5 7 . 6 7 Fire 73 | . 14 24 . . 35 Melee . | . . . . . . Ram . | . . . . . . Kick . | . . . . . . Crush 4 | . 3 1 . . . Escape Stasis . | . . . . . . Rewire . | . . . . . . Trap . | . . . . . . Miscellaneous 2 | . 2 . . . . Route ------- -11/Scrapyard -10/Materials -9/Materials -9/Mines -7/Zion -6/Proximity Caves History --------- Turn | Location | Event 10 | -11/Scrapyard | Discovered new exit (range 13) 70 | -11/Scrapyard | Entered Materials 305 | -10/Materials | Build established: Mutant 368 | -10/Materials | Discovered new exit (range 18) 433 | -10/Materials | Repaired Particle Cannon 511 | -10/Materials | Entered another Materials area 511 | -9/Materials | Evolved 2 slots: Utility x2 977 | -9/Materials | Discovered new exit (range 14) 1097 | -9/Materials | Entered Mines 1098 | -9/Mines | A Derelict revealed a hidden shortcut to a safe place 1120 | -9/Mines | Entered Zion 1299 | -7/Zion | Given the Hacking Drone Bay 1299 | -7/Zion | Found Prototype Device 1302 | -7/Zion | Identified Hacking Drone Bay 1691 | -7/Zion | Imprinted 1693 | -7/Zion | Declared Zion's savior 2625 | -7/Zion | Discovered new exit (range 17) 2646 | -7/Zion | Found Prototype Processor 2648 | -7/Zion | Found Prototype Processor 2670 | -7/Zion | Identified Exp. Melee Analysis Suite 2698 | -7/Zion | Identified Spectral Analyzer 2728 | -7/Zion | Found Prototype Processor 2745 | -7/Zion | Identified Exp. Targeting Computer 2781 | -7/Zion | Found Prototype Processor 2787 | -7/Zion | Found Prototype Processor 2836 | -7/Zion | Entered Proximity Caves 2836 | -6/Proximity Caves | Accompanied by 4 allies 3105 | -6/Proximity Caves | Attracted the attention of an 0b10 checkpoint 3464 | -6/Proximity Caves | Attracted the attention of an 0b10 outpost 3556 | -6/Proximity Caves | System corruption reached 10% 3564 | -6/Proximity Caves | Core integrity fell below 50% 3584 | -6/Proximity Caves | System corruption reached 30% 3591 | -6/Proximity Caves | Core integrity fell below 20% 3599 | -6/Proximity Caves | Destroyed by G-67 Veteran with Plasma Rifle Last Messages --------------- Power failure, Hvy. Ion Engine shutdown. Overheating: Energy bleed (-30). Particle Cannon broken. Overheating: Short circuit. Lgt. Treads fries itself beyond repair. Exp. Targeting Computer destroyed. System corrupted by crushing effect (+2). Knocked back. Particle Cannon destroyed. System corrupted by crushing effect (+2). Broken Particle Cannon destroyed. Hacking Drone Bay destroyed. Power failure, Hvy. Ion Engine shutdown. Overheating: Energy bleed (-67). Acquired Corrupted Barrage Gun. Integrated Corrupted Barrage Gun (+9). System corrupted: Component data lost. Knocked back. B-48 Gladiator destroyed. System corrupted: Barrage Gun jammed. Map ----- +----------------------------------------------------+ | ??????????????????# #??????????????????????? | | ??????????????????# #??????????????????????? | | ??????????????????# #??????????????????????? | | ????????????????### #??????????????????????? | | ????????????##### #############??????????? | | ???????????## %! """#####??????? | | ???????????# % #??????? | | ???????????##### ## ###### |%""## ##### #? | | ???????????????##??## ##???## " ## #? | | ????????????????????## ###??# "" ## ### #? | | ????????????????????##% ##?# ###### ##????? | | ???????????????????## #?# ##?#?# #?????? | | ???????????????????# |[ ### ## ### ##?????? | | ???????????????????# ## ## #??????? | | ???????????????????# ## ##??????? | | ??????????????????## ####???????? | | ?????????????####?# #??????????? | | ?????????????# ### ### #?????????? | | ??????????????# ### ###??# ????? | | ???????????????# ?## "#?????# ? | | ??????????????## ### %#####?? #########? | | ?????????????## " ##??####????????? | | ?????????????# ##?????????????? | | ????????????## ###### ####### #??? | | ????????????# #"""#%% #???? | | ????????????# ## %!# @%# #???? | | ????????????# ??## !!;%* #+## ####### #???? | | ????????????# ????## %!; %gi*# #??????????????? | | ????????????#??????## *;[%*=! # ##??????????????? | | ???????????#???????## ;% %"""#?##???????????????? | | ???????????# ??#### ######## #????????????????? | | ???????????# ## #????????????????? | | ????????????# #####????????????????? | | ????????????# ##???????????????????? | | ????????????# ##??????????????????? | | ????????????## #??????????????????? | | ?????????????## ## ##??##?????????????? | | ??????????????######?# ## ##????????????? | | ????????????????????## #????????????? | | ???????????????????## #????????????? | | ??????????????????## #????????????? | | ????????????????### #????????????? | | ???############## #????????????? | | #??# #????????????? | | #??# ##????????????? | | #??# ########## ##?????????????? | | #??# #????????## ## ###??????????????? | | ???# #?????????# #? ###????????????????? | | ???# #?????????# ## ##??????????????????? | | #??# #?????????### ##???????????????????? | +----------------------------------------------------+ Best States ------------- Heat Dissipation 42 Energy Generation 14 Energy Capacity 280 Matter Stores 300 Matter Capacity 300 Sight Range 24 Robot Scan Range 14 Terrain Scan Density 10 Evasion (%) 40 Targeting Accuracy 12 Recoil Reduction 2 Item Schematics ----------------- Particle Cannon | -9/Materials | Scanalyzed Beamcaster | -7/Zion | Free Hvy. Riot Gun | -7/Zion | Free Barrage Gun | -7/Zion | Free Battle Cannon | -7/Zion | Free Slug Cannon | -7/Zion | Free Flamer | -7/Zion | Free Ripper | -7/Zion | Free Mak. System Restoration Module | -7/Zion | Archive Coil Gun | -7/Zion | Archive Med. Treads | -7/Zion | Archive Recalibrator | -7/Zion | Archive Imp. Trap Scanner | -7/Zion | Archive Imp. Trap Extractor | -7/Zion | Archive Enh. Gauss Cannon | -7/Zion | Archive Recoil Nullifier | -7/Zion | Archive Kinecellerator | -7/Zion | Archive Imp. Medium Treads | -7/Zion | Archive Mak. Laser | -7/Zion | Archive Hpw. Shock Rifle | -7/Zion | Archive Flak Gun | -7/Zion | Archive Adv. Melee Analysis Suite | -7/Zion | Archive Robot Schematics ------------------ B-48 Gladiator | -7/Zion | Archive O-24 Administrator | -7/Zion | Archive G-47 Trooper | -7/Zion | Archive Fabricated ------------ Nothing Alien Tech Used ----------------- None Achievements -------------- Robot Respite The One Challenges ------------ None Game ------ Seed DecoderDisposableOptics Manual? 0 Play Time 00:29:58 Cumulative 3.9 hours Start 2024.04.09 @ 02:34:42 End 2024.04.09 @ 03:17:18 Sessions 1 Manual Loads 0 Difficulty Rogue Special Mode None Game No. 12 Rogue 11 Adventurer 1 Explorer 0 Win Type - Total 0 Types 0/0/0/0/0/0/0/0/0 Lore% 4 Gallery% 12 Achievement% 10 Wizard Run 0 Options --------- Layout 1 ASCII 0 Keyboard 0 Movement Arrows Keybinds 0 Fullscreen 1 Font 32/Terminus Map View 50x40 Zoom Use 0% Tactical HUD 0 Map Filters NONE Filters NONE Steam 1 RUN: 20f65de8-f543-4aef-82ed-cc6c1013978e